bitfinex/quotes_ETHUSD_20241216
["timestamp","ask_amount","ask_price","bid_price","bid_amount"]
[1734315023282,2.49851,4002.4,4000.8,2.16102183]
[1734315023781,2.49836,4002.7,4001.2,2.16102183]
[1734315024082,0.803,4003.4,4001.2,2.16102183]
[1734315024083,3.30089,4003.4,4001.3,0.21610218]
[1734315024280,2.4982,4002.9,4001.3,0.21610218]
[1734315024442,3.30089,4003.4,4001.4,0.4626424]
[1734315024880,2.49793,4003.3,4001.4,0.4626424]
[1734315025194,3.30089,4003.4,4001.4,0.4626424]
[1734315025349,0.803,4003.4,4001.4,0.4626424]
[1734315025548,2.49793,4003.3,4001.4,0.4626424]
[1734315025891,2.49791,4003.4,4001.6,2.16102183]
[1734315026103,2.4978,4003.6,4002.0,2.16102183]
[1734315026397,0.7995,4003.9,4002.0,2.16102183]
[1734315026574,2.49772,4003.7,4002.1,0.21610218]
[1734315026779,2.49772,4003.7,4002.1,2.46490218]
[1734315027396,2.49764,4003.8,4002.1,2.46490218]
[1734315027546,2.49775,4003.6,4002.2,0.4625924]
[1734315028098,2.49781,4003.5,4002.2,0.4625924]
[1734315028410,2.49756,4003.9,4002.3,0.28397164]
[1734315028695,2.49756,4004.0,4001.6,2.16102183]
[1734315028696,2.49822,4002.9,4001.6,2.16102183]
[1734315029046,2.49822,4002.9,4001.6,2.47436551]
[1734315029294,2.49822,4002.9,4001.7,0.59400819]
[1734315030359,2.49775,4003.6,4001.7,0.59400819]
[1734315030544,2.49781,4003.5,4001.7,0.31334368]
[1734315030749,2.49847,4002.5,4001.7,0.31334368]
[1734315031745,2.95432183,4003.9,4001.7,0.31334368]
[1734315031942,2.49863,4002.2,4001.7,0.31334368]
[1734315032196,2.49869,4002.1,4001.5,0.49517531]
[1734315032346,2.49869,4002.1,4001.3,0.24933014]
[1734315032570,2.49869,4002.1,4001.2,0.31334368]
[1734315032805,2.49847,4002.5,4001.2,0.31334368]
[1734315032948,2.49847,4002.5,4001.4,0.49182987]
[1734315033143,2.49818,4002.9,4001.4,0.49182987]
[1734315033394,2.49852,4002.4,4001.4,0.49182987]
[1734315034091,0.8248,4003.0,4001.4,0.49182987]
[1734315034294,2.49759,4003.9,4001.4,0.49182987]
[1734315034295,3.26146,4003.5,4001.4,0.49182987]
[1734315034590,2.49819,4002.9,4001.5,0.57862885]
[1734315035150,2.49825,4002.8,4001.5,0.57862885]
[1734315036003,0.7636,4003.5,4001.5,0.57862885]
[1734315036171,2.16102183,4003.1,4001.6,0.14027383]
[1734315036423,2.16102183,4003.1,4001.4,0.49182987]
[1734315036623,2.49855,4002.4,4001.4,0.49182987]
[1734315037340,2.92462183,4003.5,4001.4,0.49182987]
[1734315037538,2.49787,4003.4,4001.4,0.49182987]
[1734315037837,2.49839,4002.6,4001.4,0.49182987]
[1734315038846,2.49823,4002.9,4001.4,0.49182987]
[1734315039014,2.49765,4003.8,4001.8,2.24898]
[1734315039214,2.49765,4003.8,4001.9,0.44100018]
[1734315039539,2.49788,4003.4,4001.9,0.44100018]
[1734315039742,2.49765,4003.8,4001.9,0.44100018]
[1734315039943,2.49796,4003.3,4001.9,0.44100018]
[1734315040162,0.7636,4003.9,4001.9,0.44100018]
[1734315040345,2.49784,4003.5,4001.9,2.68992018]
[1734315040531,2.49784,4003.5,4002.7,0.49546612]
[1734315040736,2.49744,4004.1,4002.7,0.49546612]
[1734315040934,2.49771,4003.7,4002.7,0.49546612]
[1734315041249,2.92462183,4004.3,4001.9,0.44100018]
[1734315041250,2.49802,4003.2,4001.9,0.44100018]
[1734315041432,0.8125,4003.8,4001.1,2.24934]
[1734315041633,2.49832,4002.7,4001.2,0.48455623]
[1734315042067,2.49832,4002.7,4001.8,0.49258057]
[1734315042358,2.16102183,4003.5,4001.2,0.81683578]
[1734315042563,0.8106,4003.0,4001.1,0.49802372]
[1734315042757,2.49885,4001.9,4001.1,0.49802372]
[1734315043127,2.49853,4002.4,4001.2,0.14965387]
[1734315043461,2.49832,4002.7,4001.1,0.49802372]
[1734315043626,2.49858,4002.3,4000.7,2.24957]
[1734315043828,0.8106,4003.0,4000.8,0.224957]
[1734315044060,2.49863,4002.2,4000.5,2.24971]
[1734315044360,0.8106,4003.0,4000.5,0.31334368]
[1734315044561,2.4988,4002.0,4000.5,0.31334368]
[1734315045077,2.4988,4002.0,4001.0,0.5059138]
[1734315045729,2.16102183,4003.1,4000.5,0.31334368]
[1734315045730,0.7727,4002.3,4000.5,0.31334368]
[1734315046084,0.7727,4002.3,4000.8,0.50920965]
[1734315046235,2.93372183,4002.3,3999.9,2.02531039]
[1734315046433,2.49904,4001.6,3999.9,2.25005]
[1734315046735,2.49874,4002.1,4000.0,0.25633937]
[1734315047042,2.49874,4002.1,4000.0,2.56333368]
[1734315047043,2.499,4001.6,4000.0,2.56333368]
[1734315047244,2.93372183,4002.3,4000.1,2.24993]
[1734315047437,2.93372183,4002.3,4000.6,0.50386637]
[1734315047995,2.49862,4002.2,4000.6,0.50386637]
[1734315048135,0.7727,4002.3,4000.6,0.50386637]
[1734315048330,2.49847,4002.5,4000.6,0.81721005]
[1734315048530,2.49847,4002.5,4000.7,0.29782319]
[1734315048960,2.49869,4002.1,4000.7,0.29782319]
[1734315049775,0.7808,4002.7,4000.7,0.29782319]
[1734315049925,2.49825,4002.8,4000.9,2.24949]
[1734315050131,2.49825,4002.8,4001.1,2.24933]
[1734315050330,2.49825,4002.8,4001.2,1.20283084]
[1734315050530,2.49825,4002.8,4001.2,0.65564492]
[1734315050970,0.7638,4003.4,4001.4,2.2492]
[1734315051129,2.49812,4003.0,4001.9,0.51169203]
[1734315051545,2.49819,4002.9,4001.9,0.51169203]
[1734315052680,0.7638,4003.4,4001.2,1.33990307]
[1734315052882,2.49846,4002.5,4001.3,2.43993717]
[1734315053068,2.49851,4002.4,4001.3,0.28764619]
[1734315053277,0.7638,4003.4,4001.0,1.02655939]
[1734315053449,0.7638,4003.4,4001.5,0.48946193]
[1734315053649,2.49827,4002.8,4001.5,0.48946193]
[1734315054581,2.49831,4002.7,4001.5,0.48946193]
[1734315054879,2.49831,4002.7,4001.6,0.1829365]
[1734315055039,2.49831,4002.7,4001.5,0.48946193]
[1734315055665,2.16102183,4003.1,4001.5,0.48946193]
[1734315055868,2.16102183,4003.1,4001.0,1.5365588]
[1734315055869,2.49846,4002.5,4001.0,1.02655939]
[1734315056083,2.29692621,4003.9,4001.3,0.50623745]
[1734315056389,2.29692621,4003.9,4001.9,2.2489]
[1734315056390,2.91452183,4003.9,4001.9,2.2489]
[1734315056566,2.49762,4003.8,4002.0,0.86157689]
[1734315056885,2.91452183,4003.9,4001.9,2.2489]
[1734315056886,2.91452183,4003.9,4002.1,0.86155308]
[1734315057082,2.91452183,4003.9,4002.0,0.22489]
[1734315057282,2.91452183,4003.9,4002.1,2.15381421]
[1734315057483,2.49782,4003.5,4002.2,0.86152568]
[1734315057696,2.49782,4003.5,4002.0,0.22489]
[1734315057697,2.49782,4003.5,4002.4,0.49699863]
[1734315059021,2.32740353,4004.4,4002.4,0.49699863]
[1734315059208,0.1663817,4004.4,4002.7,2.24845]
[1734315059519,0.1663817,4004.4,4002.8,0.34232266]
[1734315059733,2.32740353,4004.4,4002.5,0.31334368]
[1734315060025,2.32740353,4004.4,4002.6,0.07801438]
[1734315060183,2.32740353,4004.4,4002.7,0.07801438]
[1734315060383,2.32740353,4004.4,4002.8,0.07801438]
[1734315060584,2.49746,4004.1,4002.9,0.07801438]
[1734315060783,2.32740353,4004.4,4003.0,0.07801438]
[1734315060784,2.49761,4003.9,4003.0,0.07801438]
[1734315060979,2.49761,4003.9,4003.1,0.07801438]
[1734315061182,2.49761,4003.9,4003.2,0.07801438]
[1734315061422,2.49761,4003.9,4002.4,0.49699863]
[1734315061423,2.49761,4003.9,4003.3,0.07801438]
[1734315061737,2.49761,4003.9,4003.4,0.07801438]
[1734315061899,2.49761,4003.9,4003.5,0.07801438]
[1734315062100,2.32740353,4004.4,4003.6,0.07801438]
[1734315062331,2.49732,4004.3,4002.6,2.24852]
[1734315062621,2.49769,4003.7,4002.7,0.45521804]
[1734315062787,2.49769,4003.7,4002.4,0.49699863]
[1734315062788,2.49769,4003.7,4002.8,0.07801024]
[1734315062986,2.49769,4003.7,4002.4,0.49699863]
[1734315062987,2.49769,4003.7,4002.9,0.07801024]
[1734315063292,2.49769,4003.7,4003.0,0.07801024]
[1734315063496,2.16102183,4004.0,4003.1,0.07801024]
[1734315063702,2.16102183,4003.6,4002.0,0.22489]
[1734315063919,2.16102183,4003.6,4002.1,0.07802714]
[1734315063920,2.49819,4002.9,4002.1,0.07802714]
[1734315064221,2.49819,4002.9,4002.2,0.07802714]
[1734315064537,2.49819,4002.9,4002.3,0.07802714]
[1734315064719,2.49819,4002.9,4001.5,0.33598787]
[1734315064720,2.49819,4002.9,4001.6,0.36117473]
[1734315064932,3.53625792,4004.0,4001.6,0.36117473]
[1734315064933,1.03872792,4004.2,4002.4,0.07803264]
[1734315065220,2.4975,4004.1,4002.5,2.32662264]
[1734315065380,2.4975,4004.1,4002.6,0.94040095]
[1734315065583,2.49751,4004.0,4002.7,0.07803264]
[1734315065833,2.49751,4004.0,4002.8,0.07803264]
[1734315065982,0.1663817,4004.4,4002.9,0.07803264]
[1734315066185,0.1663817,4004.4,4003.0,0.07803264]
[1734315066554,2.4975,4004.0,4003.1,0.07803264]
[1734315066758,2.49736,4004.3,4003.2,0.07803264]
[1734315066983,2.49736,4004.3,4003.3,0.07803264]
[1734315067259,2.49736,4004.3,4003.4,0.07803264]
[1734315067424,2.49736,4004.3,4003.5,0.07803264]
[1734315067624,2.49736,4004.3,4003.6,0.07803264]
[1734315067823,0.1663817,4004.4,4002.7,1.29863665]
[1734315068051,2.49759,4003.9,4002.8,0.94076598]
[1734315068248,2.49762,4003.8,4002.9,0.07800728]
[1734315068468,2.49798,4003.3,4003.0,0.07800728]
[1734315068644,2.49798,4003.3,4002.2,1.02655939]
[1734315068828,2.49798,4003.3,4002.3,0.94111097]
[1734315069032,2.49798,4003.3,4002.4,0.2224663]
[1734315069319,4.65867183,4003.8,4002.1,1.52989967]
[1734315069320,2.16102183,4003.8,4002.5,0.07802117]
[1734315069662,2.49801,4003.2,4002.6,0.07802117]
[1734315069835,2.49801,4003.2,4002.7,0.07802117]
[1734315070034,2.49801,4003.2,4002.8,0.07802117]
[1734315070244,2.49808,4003.1,4002.1,0.50334028]
[1734315070426,2.16102183,4003.8,4002.2,0.07802509]
[1734315070624,2.16102183,4003.4,4002.3,0.07802509]
[1734315070949,2.49837,4002.7,4001.6,0.33598787]
[1734315071165,2.49837,4002.7,4001.7,0.94129392]
[1734315071367,2.16102183,4003.4,4001.8,0.07803195]
[1734315071564,2.49881,4002.0,4001.9,0.07803195]
[1734315071769,3.24898,4002.9,4001.0,1.02655939]
[1734315071770,2.49892,4001.8,4001.0,1.02655939]
[1734315072067,2.16102183,4002.2,4000.8,1.5365588]
[1734315072068,2.16102183,4002.2,4000.8,1.02655939]
[1734315072266,2.16102183,4002.2,4001.1,0.07804682]
[1734315072267,2.49881,4001.9,4001.1,0.07804682]
[1734315072569,2.49867,4002.2,4001.2,0.07804682]
[1734315072862,2.49893,4001.7,4001.3,0.07804682]
[1734315073162,2.49828,4002.8,4001.4,0.07804682]
[1734315073163,2.49901,4001.6,4001.4,0.07804682]
[1734315073365,2.93302183,4002.2,4001.5,0.07804682]
[1734315073366,0.772,4002.2,4001.5,0.07804682]
[1734315073530,2.49896,4001.7,4001.6,0.07804682]
[1734315073928,2.49896,4001.7,4000.8,1.02655939]
[1734315074149,2.49896,4001.7,4000.6,3.26319327]
[1734315074150,2.49868,4002.1,4000.9,2.23637322]
[1734315074389,2.49895,4001.7,4001.0,0.94137913]
[1734315074696,2.49895,4001.7,4001.1,0.07804974]
[1734315074856,2.49895,4001.7,4001.2,0.07804974]
[1734315075059,2.49909,4001.5,4001.3,0.07804974]
[1734315075259,2.49909,4001.5,4000.6,0.49199932]
[1734315075496,2.49909,4001.5,4000.7,0.07805638]
[1734315075697,2.49909,4001.5,4000.8,0.07805638]
[1734315075856,2.49909,4001.5,4000.6,0.49199932]
[1734315076053,2.49909,4001.5,4000.9,0.07805677]
[1734315076257,2.49909,4001.5,4001.0,0.07805677]
[1734315076497,2.49909,4001.5,4001.1,0.07805677]
[1734315076791,2.49909,4001.5,4000.6,0.67745398]
[1734315076961,2.49909,4001.5,4000.7,0.078057]
[1734315077169,2.93302183,4002.2,4000.8,0.078057]
[1734315077473,2.49828,4002.8,4000.9,0.078057]
[1734315077474,2.49937,4001.0,4000.9,0.078057]
[1734315077681,2.49957,4000.7,3999.9,1.02655939]
[1734315077873,2.49957,4000.7,4000.0,0.38469441]
[1734315078063,2.49965,4000.6,4000.1,0.07807077]
[1734315078404,2.49965,4000.6,3999.8,0.50311825]
[1734315078405,2.49965,4000.6,4000.2,0.07807077]
[1734315078710,3.31479,4001.3,3999.8,0.50311825]
[1734315079024,0.8156,4001.3,3999.9,0.23104229]
[1734315079328,0.8156,4001.3,3999.8,0.50311825]
[1734315079329,2.49925,4001.2,4000.0,0.07807453]
[1734315079461,2.49956,4000.7,4000.1,0.07807453]
[1734315079660,2.49956,4000.7,4000.2,0.07807453]
[1734315079902,2.49956,4000.7,3999.8,0.50311825]
[1734315080060,2.49956,4000.7,3999.9,0.07807445]
[1734315080264,2.49956,4000.7,4000.0,0.07807445]
[1734315080607,0.8156,4000.9,3999.5,1.02655939]
[1734315081060,2.50006,3999.9,3999.5,1.02655939]
[1734315082252,0.7664,4000.0,3999.5,1.02655939]
[1734315082549,2.50019,3999.7,3999.5,1.02655939]
[1734315084148,2.50007,3999.9,3999.5,1.02655939]
[1734315084516,2.50013,3999.8,3999.5,1.02655939]
[1734315085033,2.5002,3999.7,3999.5,1.02655939]
[1734315085452,0.7664,4000.3,3999.5,1.02655939]
[1734315085643,2.50005,4000.0,3999.5,1.02655939]
[1734315085852,0.7664,4000.3,3999.5,1.02655939]
[1734315086053,2.50014,3999.8,3999.5,1.02655939]
[1734315086244,3.26621,4000.3,3999.5,1.02655939]
[1734315086450,2.50019,3999.7,3999.5,1.02655939]
[1734315086849,2.49994,4000.1,3998.3,0.49211992]
[1734315087054,2.50026,3999.6,3998.3,0.49211992]
[1734315087436,2.50011,3999.9,3998.3,0.49211992]
[1734315087615,2.49991,4000.2,3998.7,2.25071]
[1734315087822,0.7664,4000.3,3998.7,2.25071]
[1734315088045,2.50006,3999.9,3998.8,0.225071]
[1734315088350,2.50006,3999.9,3998.4,2.58684787]
[1734315088560,0.7664,4000.3,3998.4,2.58684787]
[1734315088716,2.50014,3999.8,3998.4,2.58684787]
[1734315089358,2.50021,3999.7,3998.4,0.33598787]
[1734315090016,2.50021,3999.7,3997.7,2.16102183]
[1734315090219,2.50021,3999.7,3997.9,0.07809524]
[1734315090460,2.50027,3999.6,3998.2,2.25098]
[1734315090958,0.7789,3999.6,3997.7,2.25126]
[1734315091135,0.7789,3999.6,3997.8,0.62198598]
[1734315091136,2.5005,3999.2,3997.8,0.62198598]
[1734315091332,0.7789,3999.6,3997.8,0.62198598]
[1734315091333,0.7789,3999.6,3997.9,0.07810186]
[1734315091532,2.50034,3999.5,3998.1,2.25103]
[1734315091750,2.50037,3999.4,3997.8,2.79506412]
[1734315091963,0.7789,3999.6,3997.9,0.95765278]
[1734315092137,2.50044,3999.3,3997.9,3.13069945]
[1734315092876,2.50044,3999.3,3998.0,0.07810319]
[1734315093047,2.50044,3999.3,3997.9,3.13069945]
[1734315093253,2.93992183,3999.6,3997.9,0.38216235]
[1734315093580,2.93992183,3999.6,3997.6,0.50903328]
[1734315093781,2.5007,3998.9,3997.7,0.07810644]
[1734315093971,2.5007,3998.9,3997.6,0.50903328]
[1734315094169,2.5007,3998.9,3997.7,0.27603833]
[1734315094687,2.93992183,3999.6,3997.7,0.27603833]
[1734315094843,2.50099,3998.5,3996.8,1.18257175]
[1734315095040,2.50099,3998.5,3997.3,0.49309589]
[1734315095477,0.7521,3998.8,3996.8,1.18257175]
[1734315095676,2.50112,3998.2,3996.8,1.18257175]
[1734315095985,2.50112,3998.2,3996.9,0.66846632]
[1734315096289,2.50132,3997.9,3997.0,0.07811907]
[1734315096450,2.91312183,3998.8,3997.0,0.07811907]
[1734315096640,2.50141,3997.8,3997.1,0.07811907]
[1734315096840,2.50141,3997.8,3996.8,1.35338497]
[1734315097041,2.50141,3997.8,3996.9,0.07812749]
[1734315097246,2.50141,3997.8,3997.0,0.07812749]
[1734315097582,2.50141,3997.8,3996.8,1.35338497]
[1734315097583,2.50141,3997.8,3997.1,0.07812749]
[1734315097760,2.50141,3997.8,3996.9,0.1353385]
[1734315098081,2.50141,3997.8,3997.0,0.07812574]
[1734315098286,2.50141,3997.8,3997.1,0.07812574]
[1734315098448,2.50141,3997.8,3997.2,0.07812628]
[1734315098646,2.5015,3997.6,3996.8,0.32971851]
[1734315099385,2.91312183,3998.8,3996.2,2.46901072]
[1734315099691,0.819,3998.1,3995.9,2.00201]
[1734315099884,0.819,3998.1,3995.6,2.00218]
[1734315099885,2.50189,3997.0,3995.6,2.00218]
[1734315100089,2.16102183,3997.2,3995.7,0.59113338]
[1734315100249,2.16102183,3997.2,3995.4,0.85056586]
[1734315100250,2.50198,3996.9,3995.4,0.85056586]
[1734315100447,2.50181,3997.1,3995.4,0.85056586]
[1734315100651,2.5024,3996.2,3995.4,0.85056586]
[1734315100886,2.16102183,3997.2,3995.4,0.85056586]
[1734315101195,2.50237,3996.2,3995.0,0.38995677]
[1734315101687,0.7751,3996.8,3995.0,0.38995677]
[1734315101898,2.50233,3996.3,3995.0,0.38995677]
[1734315102456,0.7751,3996.8,3995.0,0.38995677]
[1734315102457,2.50239,3996.2,3995.0,0.38995677]
[1734315102877,3.27716,3996.8,3995.0,0.38995677]
[1734315102878,2.50233,3996.3,3995.0,0.38995677]
[1734315104353,0.7751,3996.8,3995.0,0.38995677]
[1734315104550,2.50224,3996.5,3995.0,0.38995677]
[1734315104750,3.27711,3996.8,3995.0,0.38995677]
[1734315104957,2.50201,3996.8,3995.0,0.38995677]
[1734315105399,2.50201,3996.8,3995.4,2.00229]
[1734315105558,2.50201,3996.8,3995.5,0.200229]
[1734315105901,0.7751,3997.2,3995.5,0.200229]
[1734315105902,2.50208,3996.7,3995.5,0.200229]
[1734315106395,2.50208,3996.7,3995.0,0.38995677]
[1734315106396,0.7751,3997.2,3995.0,0.38995677]
[1734315106693,2.50232,3996.3,3995.0,0.38995677]
[1734315107454,0.7751,3997.2,3995.0,0.38995677]
[1734315107677,2.50216,3996.6,3995.0,0.38995677]
[1734315107887,0.7751,3997.2,3995.4,2.00229]
[1734315107888,2.50198,3996.9,3995.4,2.00229]
[1734315108052,2.50203,3996.8,3995.4,2.00229]
[1734315108269,2.50213,3996.6,3995.5,0.200229]
[1734315108469,2.50213,3996.6,3995.1,2.00241]
[1734315108691,2.50213,3996.6,3995.2,2.00238]
[1734315108896,2.50213,3996.6,3995.0,0.38995677]
[1734315108897,2.50213,3996.6,3995.3,2.00234]
[1734315109595,2.50213,3996.6,3992.8,2.632]
[1734315109596,0.7751,3995.4,3992.3,1.0252927]
[1734315109757,0.7751,3995.4,3991.5,2.57773007]
[1734315109758,0.7751,3994.1,3991.1,2.59588575]
[1734315109957,0.7751,3994.1,3992.6,0.49159663]
[1734315110217,2.50389,3993.8,3991.9,2.00403]
[1734315110496,0.7751,3994.1,3992.6,0.34600984]
[1734315110702,2.50375,3994.0,3992.7,0.07821006]
[1734315110996,2.50354,3994.4,3992.8,1.00670946]
[1734315111180,2.50356,3994.4,3992.9,0.07821006]
[1734315111355,2.50356,3994.4,3992.8,1.28959874]
[1734315111356,2.50351,3994.4,3993.0,0.88704279]
[1734315111560,2.50325,3994.8,3993.1,0.07821006]
[1734315111561,2.50326,3994.8,3993.1,0.07821006]
[1734315111752,3.32186,3995.5,3993.2,0.07821006]
[1734315112058,2.50284,3995.5,3993.8,2.00305]
[1734315112262,2.50284,3995.5,3993.9,2.89008279]
[1734315112563,2.5028,3995.6,3994.0,0.36721834]
[1734315112759,2.50238,3996.2,3994.4,2.00277]
[1734315113080,2.50229,3996.4,3994.7,2.00263]
[1734315113281,2.50229,3996.4,3994.8,0.07821006]
[1734315113484,2.50229,3996.4,3994.9,0.07821006]
[1734315113684,2.50229,3996.4,3995.0,0.07821006]
[1734315113879,2.50229,3996.4,3994.8,0.28896728]
[1734315113880,2.50229,3996.4,3995.1,0.07821006]
[1734315114085,2.50235,3996.3,3995.2,0.07821006]
[1734315114394,2.50235,3996.3,3995.3,0.07821006]
[1734315114598,2.50235,3996.3,3995.4,0.07821006]
[1734315114795,2.50235,3996.3,3994.8,0.78029046]
[1734315114986,2.50235,3996.3,3994.9,0.07816021]
[1734315115187,2.50235,3996.3,3995.0,0.07816021]
[1734315115503,2.50235,3996.3,3995.1,0.07816021]
[1734315115698,2.5024,3996.2,3995.1,0.07816021]
[1734315116376,2.5024,3996.2,3995.2,0.07816021]
[1734315116584,2.5024,3996.2,3995.3,0.07816021]
[1734315116759,2.50206,3996.7,3995.4,0.07816021]
[1734315117102,2.50252,3996.0,3995.5,0.07816021]
[1734315117306,2.50212,3996.6,3994.1,1.29880544]
[1734315117307,2.50283,3995.5,3994.1,1.29880544]
[1734315117468,2.50283,3995.5,3994.2,0.20805134]
[1734315117803,2.59588575,3996.3,3994.3,0.88700353]
[1734315117978,2.50237,3996.2,3994.4,2.0809608]
[1734315118174,2.50256,3996.0,3994.5,0.0781708]
[1734315118376,2.50257,3995.9,3994.6,0.0781708]
[1734315118583,2.50257,3995.9,3994.7,0.0781708]
[1734315118790,2.50257,3995.9,3994.8,0.0781708]
[1734315119128,2.50207,3996.7,3994.9,0.0781708]
[1734315119304,2.59588575,3996.8,3994.5,0.80883273]
[1734315119305,5.09789575,3996.8,3995.0,0.0781708]
[1734315119470,5.09789575,3996.8,3995.1,0.0781708]
[1734315119804,5.09789575,3996.8,3995.2,0.0781708]
[1734315120027,5.09789575,3996.8,3995.3,0.0781708]
[1734315120028,2.59588575,3996.8,3995.3,0.0781708]
[1734315120182,2.59588575,3996.8,3995.4,0.0781708]
[1734315120389,2.59588575,3996.8,3995.5,0.0781708]
[1734315120390,2.50219,3996.5,3995.5,0.0781708]
[1734315120568,2.50219,3996.5,3995.6,0.0781708]
[1734315120769,0.819,3996.9,3995.7,0.0781708]
[1734315121117,2.50186,3997.1,3995.8,0.0781708]
[1734315121498,2.49884882,3997.1,3995.8,0.0781708]
[1734315121818,2.49884882,3997.1,3995.9,0.0781708]
[1734315121981,2.49884882,3997.1,3995.6,2.00219]
[1734315121982,2.49884882,3997.1,3996.0,0.0781708]
[1734315122317,2.59588575,3997.3,3995.6,2.00219]
[1734315122318,2.50188,3997.0,3996.1,0.0781708]
[1734315122532,2.50188,3997.0,3995.6,2.00219]
[1734315122533,2.50188,3997.0,3996.2,0.0781708]
[1734315122807,2.50151,3997.6,3995.1,0.80883273]
[1734315122808,2.50152,3997.6,3995.5,0.41796517]
[1734315123014,0.49010753,3998.3,3995.5,0.41796517]
[1734315123015,2.50136,3997.9,3996.3,0.07814213]
[1734315123214,2.50136,3997.9,3996.4,0.07814213]
[1734315123429,2.50136,3997.9,3996.5,0.07814213]
[1734315123599,2.50136,3997.9,3996.6,0.07814213]
[1734315123938,2.50136,3997.9,3996.7,0.07814213]
[1734315124079,2.50136,3997.9,3996.8,0.07814213]
[1734315124283,2.50136,3997.9,3996.4,2.00178]
[1734315124284,3.28454,3998.2,3996.9,0.07814213]
[1734315124534,2.59588575,3998.8,3997.0,0.07814213]
[1734315124535,2.50101,3998.4,3997.0,0.07814213]
[1734315124710,2.50109,3998.3,3997.1,0.07814213]
[1734315124879,0.7972,3998.7,3997.2,0.07814213]
[1734315124880,2.50113,3998.2,3997.2,0.07814213]
[1734315125078,2.50113,3998.2,3997.3,0.07814213]
[1734315125405,2.50113,3998.2,3997.4,0.07814213]
[1734315125598,2.50113,3998.2,3997.5,0.07814213]
[1734315125919,2.50138,3997.8,3997.6,0.07814213]
[1734315126145,2.59588575,3997.8,3995.4,2.00228]
[1734315126284,2.50216,3996.6,3995.2,2.00237]
[1734315126697,2.50216,3996.6,3995.2,2.81120273]
[1734315126844,2.50199,3996.9,3995.2,0.80883273]
[1734315127743,3.26678,3997.7,3996.1,2.0019]
[1734315127916,0.7653,3997.7,3996.1,0.80883273]
[1734315128277,0.7653,3997.7,3995.3,0.41796517]
[1734315128278,2.5013,3998.0,3996.5,2.00173]
[1734315128646,0.7653,3998.3,3996.5,2.00173]
[1734315128841,2.50125,3998.0,3996.5,2.00173]
[1734315129161,2.50133,3997.9,3996.5,2.00173]
[1734315129514,2.50116,3998.2,3996.2,0.80883273]
[1734315129736,2.50121,3998.1,3996.8,2.00158]
[1734315129934,2.59588575,3998.8,3996.2,0.80883273]
[1734315129935,2.501,3998.4,3996.2,0.80883273]
[1734315130243,2.50131,3998.0,3996.6,2.00168]
[1734315130548,2.5015,3997.6,3996.3,2.00181]
[1734315131043,2.50135,3997.9,3996.4,2.00178]
[1734315131356,2.50139,3997.8,3996.4,2.00178]
[1734315131532,2.50145,3997.7,3996.4,2.00178]
[1734315131849,2.50115,3998.2,3996.7,2.00161]
[1734315132034,2.50115,3998.2,3996.8,2.00159]
[1734315132840,2.50126,3998.0,3996.6,2.00169]
[1734315133042,2.5011,3998.3,3996.4,2.0018]
[1734315133244,2.5011,3998.3,3996.8,2.00158]
[1734315133439,0.7653,3998.6,3996.8,2.00158]
[1734315134138,2.50108,3998.3,3996.8,2.00158]
[1734315134343,2.50113,3998.2,3996.8,2.00158]
[1734315135343,2.50113,3998.2,3996.3,0.59003956]
[1734315135344,0.7653,3998.6,3996.5,2.00171]
[1734315135543,0.7653,3998.6,3996.3,0.59003956]
[1734315135544,2.50106,3998.3,3996.3,2.00184]
[1734315135703,2.50144,3997.7,3996.3,2.00184]
[1734315136317,2.50106,3998.3,3996.2,0.41796517]
[1734315136605,2.50106,3998.3,3996.5,2.00174]
[1734315136838,2.5014,3997.8,3996.5,2.00174]
[1734315137109,2.50147,3997.7,3996.2,2.41983517]
[1734315137334,2.50152,3997.6,3996.2,3.2286679]
[1734315137536,0.7896,3998.3,3996.3,0.80883273]
[1734315137743,2.50184,3997.1,3996.0,0.80883273]
[1734315138109,2.59588575,3998.3,3996.1,0.07814234]
[1734315138110,2.50137,3997.8,3996.1,0.07814234]
[1734315138350,0.7896,3997.9,3996.2,0.07814234]
[1734315138644,2.50233,3996.3,3995.1,0.80883273]
[1734315138945,2.50233,3996.3,3995.2,0.07815591]
[1734315139143,2.50238,3996.2,3995.3,0.07815591]
[1734315140145,3.29161,3996.8,3995.3,0.07815591]
[1734315140146,0.7896,3996.8,3995.3,0.07815591]
[1734315140445,0.7896,3996.8,3995.4,0.07815591]
[1734315140662,0.7896,3996.8,3995.5,0.07815591]
[1734315140823,2.50266,3995.8,3995.6,0.07815591]
[1734315141031,2.50271,3995.7,3994.8,0.80883273]
[1734315141220,2.50281,3995.6,3994.9,0.07816801]
[1734315141426,2.50283,3995.5,3995.0,0.07816801]
[1734315141660,2.50283,3995.5,3995.1,0.07816801]
[1734315141908,2.50283,3995.5,3995.2,0.07816801]
[1734315142089,2.50283,3995.5,3994.2,2.00286]
[1734315142410,2.50283,3995.5,3994.3,0.32025539]
[1734315142565,2.50283,3995.5,3994.4,0.07817287]
[1734315142773,2.50283,3995.5,3994.5,0.07817287]
[1734315142987,2.50283,3995.5,3994.6,0.07817287]
[1734315143186,2.50283,3995.5,3994.7,0.07817287]
[1734315143401,2.50283,3995.5,3994.8,0.07817287]
[1734315143597,2.50283,3995.5,3994.9,0.07817287]
[1734315143798,2.50283,3995.5,3995.0,0.07817287]
[1734315144005,2.50283,3995.5,3995.1,0.07817287]
[1734315144312,2.50283,3995.5,3994.3,0.24208252]
[1734315144516,2.50269,3995.7,3994.4,0.07817265]
[1734315144733,2.50322,3994.9,3993.7,0.85085301]
[1734315144873,2.50322,3994.9,3994.5,0.07818225]
[1734315145075,2.50322,3994.9,3993.7,1.03859425]
[1734315145276,2.50269,3995.7,3993.8,0.07818489]
[1734315145512,2.50269,3995.7,3993.9,0.07818489]
[1734315145688,2.50269,3995.7,3994.0,0.07818489]
[1734315145890,2.50269,3995.7,3994.1,0.07818489]
[1734315145891,2.50302,3995.2,3994.1,0.07818489]
[1734315146095,0.8235,3995.9,3994.2,0.07818489]
[1734315146289,2.50305,3995.2,3994.3,0.07818489]
[1734315146476,2.50305,3995.2,3994.4,0.07818489]
[1734315146681,2.50305,3995.2,3993.7,0.85085301]
[1734315146682,2.50305,3995.2,3994.5,0.07818489]
[1734315146876,0.8235,3995.9,3994.6,0.07818489]
[1734315147080,0.8235,3995.9,3994.1,2.00293]